[Event "8th Mersin Open 2024"]
[Site "Mersin"]
[Date "2024.11.11"]
[Round "2"]
[White "Yigit, Ahmet Yasir"]
[Black "Bassari, Senem Gul"]
[Result "1-0"]
[ECO "C58"]
[WhiteElo "1927"]
[BlackElo "1778"]
[Annotator "RC"]
[PlyCount "73"]
[EventDate "2024.11.10"]
[EventType "swiss"]
[EventCountry "TUR"]
[SourceTitle "playchess.com"]
[Source "ChessBase"]
[SourceQuality "1"]
[TimeControl "5400+30"]

1. e4 {[%emt 0:06:00]} e5 {[%emt 0:01:00]} 2. Nf3 {[%emt 0:01:30]} Nc6 {[%emt 0:00:00]} 3. Bc4 {[%emt 0:00:30]} Nf6 {[%emt 0:01:00]} 4. Ng5 {[%emt 0:00:30]} d5 {[%emt 0:00:30]} 5. exd5 {[%emt 0:00:00]} Na5 {[%emt 0:00:00]} 6. Bb5+ {[%emt 0:00:00]} c6 {[%emt 0:02:00]} 7. dxc6 {[%emt 0:01:30]} bxc6 {[%emt 0:00:30]} 8. Qf3 {[%emt 0:00:00]} Qc7 {[%emt 0:19:30]} 9. Bd3 {[%emt 0:04:00]} Bg4 {[%emt 0:09:30]} 10. Qg3 {[%emt 0:01:30]} O-O-O {[%emt 0:18:30]} 11. Nc3 {[%emt 0:01:30]} h5 {[%emt 0:13:30]} 12. f3 {[%emt 0:01:30]} Be6 {[%emt 0:04:30]} 13. Nxe6 {[%emt 0:03:30]} fxe6 {[%emt 0:02:30]} 14. b3 {[%emt 0:00:30]} Nd5 {[%emt 0:07:01]} 15. Nxd5 {[%emt 0:02:30]} exd5 {[%emt 0:00:28]} 16. Bb2 {[%emt 0:00:00]} Bd6 {[%emt 0:00:25]} 17. O-O-O {[%emt 0:00:00]} Kb8 {[%emt 0:01:35]} 18. Qh4 {[%emt 0:01:30]} Rdf8 {[%emt 0:02:44]} 19. Rde1 {[%emt 0:01:30]} d4 {[%emt 0:03:42]} 20. Be4 {[%emt 0:03:30]} c5 {[%emt 0:06:19]} 21. d3 {[%emt 0:00:00]} a6 {[%emt 0:02:08]} 22. Qh3 {[%emt 0:00:00]} Rh6 {[%emt 0:01:03]} 23. Kb1 {[%emt 0:00:30]} Qe7 {[%emt 0:02:23]} 24. Bc1 {[%emt 0:00:30]} Rhh8 {[%emt 0:00:40]} 25. Bd5 {[%emt 0:00:30]} Re8 {[%emt 0:00:53]} 26. Bd2 {[%emt 0:01:30]} Qc7 {[%emt 0:00:35]} 27. Qf5 {[%emt 0:01:30]} Nc6 {[%emt 0:00:28]} 28. Qe4 {[%emt 0:00:30]} Ne7 {[%emt 0:00:37]} 29. Bc4 {[%emt 0:00:30]} Ka7 {[%emt 0:00:09]} 30. h4 {[%emt 0:03:30]} Nc6 {[%emt 0:00:46]} 31. g4 {[%emt 0:00:30]} Na5 {[%emt 0:00:32]} 32. Bd5 {[%emt 0:00:00]} Rb8 {[%emt 0:00:24]} 33. Qg6 {[%emt 0:01:00]} Rbc8 {[%emt 0:00:56]} 34. Bxa5 {[%emt 0:00:30]} Qxa5 {[%emt 0:00:13]} 35. Qxd6 {[%emt 0:00:00]} Rh6 {[%emt 0:00:14]} 36. Qd7+ {[%emt 0:01:00]} Rc7 {[%emt 0:00:04]} 37. Qd8 {[%emt 0:00:30]} 1-0

[Event "8th Mersin Open 2024"]
[Site "Mersin"]
[Date "2024.11.11"]
[Round "2"]
[White "Abdullah, Layth Ahmed"]
[Black "Bulut, Kemal"]
[Result "1/2-1/2"]
[ECO "D11"]
[WhiteElo "1920"]
[BlackElo "1769"]
[Annotator "NA RC"]
[PlyCount "72"]
[EventDate "2024.11.10"]
[EventType "swiss"]
[EventCountry "TUR"]
[SourceTitle "playchess.com"]
[Source "ChessBase"]
[SourceQuality "1"]
[TimeControl "5400+30"]

1. Nf3 {[%emt 0:03:00]} d5 {[%emt 0:02:00]} 2. d4 {[%emt 0:00:30]} Nf6 {[%emt 0:00:30]} 3. c4 {[%emt 0:03:30]} c6 {[%emt 0:01:30]} 4. Qc2 {[%emt 0:01:30]} g6 {[%emt 0:02:30]} 5. cxd5 {[%emt 0:05:30]} cxd5 {[%emt 0:02:30]} 6. Nc3 {[%emt 0:01:30]} Bg7 {[%emt 0:03:30]} 7. Bf4 {[%emt 0:01:30]} Nc6 {[%emt 0:01:30]} 8. e3 {[%emt 0:06:30]} O-O {[%emt 0:02:30]} 9. a3 {[%emt 0:02:30]} Qa5 {[%emt 0:06:30]} 10. Rc1 {[%emt 0:04:30]} Nh5 {[%emt 0:07:30]} 11. Bg5 {[%emt 0:02:30]} e5 {[%emt 0:07:30]} 12. dxe5 {[%emt 0:02:30]} Nxe5 {[%emt 0:00:00]} 13. Nd4 {[%emt 0:07:30]} Nc6 {[%emt 0:08:00]} 14. Nb3 {[%emt 0:00:30]} Qc7 {[%emt 0:00:30]} 15. Be2 {[%emt 0:03:30]} Bf5 {[%emt 0:01:30]} 16. Qd1 {[%emt 0:00:30]} Nf6 {[%emt 0:07:30]} 17. Bxf6 {[%emt 0:03:30]} Bxf6 {[%emt 0:00:30]} 18. Nxd5 {[%emt 0:00:00]} Qe5 {[%emt 0:00:00]} 19. Nxf6+ {[%emt 0:01:00]} Qxf6 {[%emt 0:00:00]} 20. Qd2 {[%emt 0:05:30]} Rad8 {[%emt 0:02:30]} 21. Qc3 {[%emt 0:00:30]} Qg5 {[%emt 0:00:00]} 22. Bf3 {[%emt 0:04:30]} Rd3 {[%emt 0:00:00]} 23. Qc4 {[%emt 0:03:30]} Ne5 {[%emt 0:01:30]} 24. Qb5 {[%emt 0:00:30]} Nxf3+ {[%emt 0:02:30]} 25. gxf3 {[%emt 0:00:30]} Rfd8 {[%emt 0:01:30]} 26. Nd4 {[%emt 0:06:30]} R3xd4 {[%emt 0:01:30]} 27. Qxb7 {[%emt 0:03:30]} Rd3 {[%emt 0:00:30]} 28. f4 {[%emt 0:01:30]} Rxe3+ {[%emt 0:08:30]} 29. fxe3 {[%emt 0:00:30]} Qh4+ {[%emt 0:00:00]} 30. Kf1 {[%emt 0:00:00]} Qh3+ {[%emt 0:00:00]} 31. Qg2 {[%emt 0:03:00]} Bd3+ {[%emt 0:00:30]} 32. Kf2 {[%emt 0:00:30]} Qxg2+ {[%emt 0:02:30]} 33. Kxg2 {[%emt 0:00:30]} Be4+ {[%emt 0:00:30]} 34. Kg3 {[%emt 0:00:30]} Bxh1 {[%emt 0:00:30]} 35. Rxh1 {[%emt 0:00:30]} Rd2 {[%emt 0:00:30]} 36. Rb1 {[%emt 0:00:30]} Re2 {[%emt 0:00:30]} 1/2-1/2

[Event "8th Mersin Open 2024"]
[Site "Mersin"]
[Date "2024.11.11"]
[Round "2"]
[White "Damya, Aydin"]
[Black "Avsar, Gediz"]
[Result "1-0"]
[ECO "E14"]
[WhiteElo "1798"]
[BlackElo "1926"]
[Annotator "RC"]
[PlyCount "115"]
[EventDate "2024.11.10"]
[EventType "swiss"]
[EventCountry "TUR"]
[SourceTitle "playchess.com"]
[Source "ChessBase"]
[SourceQuality "1"]
[TimeControl "5400+30"]

1. Nf3 {[%emt 0:02:00]} c5 {[%emt 0:01:00]} 2. b3 {[%emt 0:00:00]} d5 {[%emt 0:01:30]} 3. e3 {[%emt 0:00:00]} Nf6 {[%emt 0:01:30]} 4. Bb2 {[%emt 0:00:30]} e6 {[%emt 0:02:30]} 5. d4 {[%emt 0:00:30]} Nc6 {[%emt 0:00:30]} 6. Bd3 {[%emt 0:03:30]} Be7 {[%emt 0:00:30]} 7. O-O {[%emt 0:00:30]} O-O {[%emt 0:00:00]} 8. c4 {[%emt 0:04:30]} b6 {[%emt 0:03:00]} 9. Nbd2 {[%emt 0:01:30]} Bb7 {[%emt 0:00:30]} 10. Rc1 {[%emt 0:00:30]} Rc8 {[%emt 0:01:30]} 11. Qe2 {[%emt 0:03:30]} cxd4 {[%emt 0:05:30]} 12. Nxd4 {[%emt 0:03:30]} Nxd4 {[%emt 0:05:30]} 13. Bxd4 {[%emt 0:03:30]} dxc4 {[%emt 0:04:30]} 14. Nxc4 {[%emt 0:00:30]} Qd5 {[%emt 0:02:30]} 15. f3 {[%emt 0:04:30]} Rfd8 {[%emt 0:04:30]} 16. Rfd1 {[%emt 0:09:30]} Qg5 {[%emt 0:06:30]} 17. a4 {[%emt 0:28:30]} h5 {[%emt 0:09:30]} 18. f4 {[%emt 0:05:30]} Qg4 {[%emt 0:07:30]} 19. Ne5 {[%emt 0:04:30]} Qxe2 {[%emt 0:00:30]} 20. Bxe2 {[%emt 0:00:00]} Ba3 {[%emt 0:03:30]} 21. Rxc8 {[%emt 0:02:00]} Rxc8 {[%emt 0:00:30]} 22. Nc4 {[%emt 0:00:00]} Be7 {[%emt 0:06:30]} 23. Bxf6 {[%emt 0:01:00]} Bxf6 {[%emt 0:00:30]} 24. Bxh5 {[%emt 0:04:14]} g6 {[%emt 0:03:30]} 25. Bf3 {[%emt 0:05:29]} Ba6 {[%emt 0:01:30]} 26. Rd7 {[%emt 0:08:43]} Bxc4 {[%emt 0:01:30]} 27. bxc4 {[%emt 0:00:01]} Rxc4 {[%emt 0:02:30]} 28. Rxa7 {[%emt 0:00:08]} Rc2 {[%emt 0:01:30]} 29. Rb7 {[%emt 0:01:14]} Rb2 {[%emt 0:00:30]} 30. Bc6 {[%emt 0:00:46]} g5 {[%emt 0:09:08]} 31. g3 {[%emt 0:03:23]} gxf4 {[%emt 0:00:42]} 32. gxf4 {[%emt 0:00:14]} Bh4 {[%emt 0:01:25]} 33. a5 {[%emt 0:00:50]} Bf2+ {[%emt 0:07:24]} 34. Kf1 {[%emt 0:00:30]} Bxe3 {[%emt 0:00:30]} 35. a6 {[%emt 0:00:30]} b5 {[%emt 0:00:35]} 36. a7 {[%emt 0:00:12]} Bxa7 {[%emt 0:00:40]} 37. Rxa7 {[%emt 0:00:02]} Rxh2 {[%emt 0:00:10]} 38. Be8 {[%emt 0:00:47]} Kf8 {[%emt 0:00:48]} 39. Bxb5 {[%emt 0:00:42]} Rh5 {[%emt 0:02:16]} 40. Bd3 {[%emt 0:01:20]} Rh4 {[%emt 0:01:09]} 41. Ra4 {[%emt 0:00:07]} e5 {[%emt 0:03:18]} 42. Ra8+ {[%emt 0:00:07]} Ke7 {[%emt 0:00:00]} 43. fxe5 {[%emt 0:01:14]} f6 {[%emt 0:00:00]} 44. exf6+ {[%emt 0:00:41]} Kxf6 {[%emt 0:00:00]} 45. Kf2 {[%emt 0:00:13]} Rh3 {[%emt 0:00:31]} 46. Be4 {[%emt 0:00:24]} Ke5 {[%emt 0:00:29]} 47. Bf3 {[%emt 0:00:32]} Kf4 {[%emt 0:00:17]} 48. Ra4+ {[%emt 0:00:06]} Ke5 {[%emt 0:00:13]} 49. Ke3 {[%emt 0:00:00]} Rh8 {[%emt 0:00:45]} 50. Ra5+ {[%emt 0:00:11]} Kf6 {[%emt 0:00:30]} 51. Kf4 {[%emt 0:00:00]} Rf8 {[%emt 0:00:01]} 52. Bg4 {[%emt 0:00:05]} Kg7+ {[%emt 0:01:18]} 53. Kg5 {[%emt 0:00:12]} Rf7 {[%emt 0:00:04]} 54. Ra6 {[%emt 0:00:52]} Re7 {[%emt 0:00:18]} 55. Be6 {[%emt 0:00:50]} Rc7 {[%emt 0:00:10]} 56. Bd5 {[%emt 0:00:36]} Re7 {[%emt 0:00:43]} 57. Rg6+ {[%emt 0:00:38]} Kf8 {[%emt 0:00:30]} 58. Rg8# {[%emt 0:00:00]} 1-0

[Event "8th Mersin Open 2024"]
[Site "Mersin"]
[Date "2024.11.11"]
[Round "2"]
[White "Ercan, Mehmet Fahri"]
[Black "Adiguzel, Hakan"]
[Result "1-0"]
[ECO "E81"]
[WhiteElo "1788"]
[BlackElo "1920"]
[Annotator "RC"]
[PlyCount "104"]
[EventDate "2024.11.10"]
[EventType "swiss"]
[EventCountry "TUR"]
[SourceTitle "playchess.com"]
[Source "ChessBase"]
[SourceQuality "1"]
[TimeControl "5400+30"]

1. d4 {[%emt 0:21:00]} Nf6 {[%emt 0:01:00]} 2. c4 {[%emt 0:00:30]} g6 {[%emt 0:00:30]} 3. f3 {[%emt 0:01:30]} Bg7 {[%emt 0:00:30]} 4. e4 {[%emt 0:00:30]} d6 {[%emt 0:00:30]} 5. Nc3 {[%emt 0:00:00]} Nbd7 {[%emt 0:00:30]} 6. Be3 {[%emt 0:00:00]} O-O {[%emt 0:00:30]} 7. Qd2 {[%emt 0:03:30]} c5 {[%emt 0:00:30]} 8. O-O-O {[%emt 0:00:30]} cxd4 {[%emt 0:00:30]} 9. Bxd4 {[%emt 0:00:30]} a6 {[%emt 0:01:30]} 10. Kb1 {[%emt 0:00:30]} b5 {[%emt 0:01:30]} 11. g4 {[%emt 0:04:30]} Nb6 {[%emt 0:21:30]} 12. h4 {[%emt 0:08:30]} Nxc4 {[%emt 0:15:30]} 13. Bxc4 {[%emt 0:00:30]} bxc4 {[%emt 0:00:30]} 14. h5 {[%emt 0:00:00]} Rb8 {[%emt 0:08:30]} 15. hxg6 {[%emt 0:32:00]} fxg6 {[%emt 0:02:30]} 16. Qh2 {[%emt 0:04:42]} h6 {[%emt 0:07:30]} 17. e5 {[%emt 0:05:05]} dxe5 {[%emt 0:05:30]} 18. Bxe5 {[%emt 0:00:54]} Bd7 {[%emt 0:00:30]} 19. Bxb8 {[%emt 0:00:30]} Qxb8 {[%emt 0:00:30]} 20. Qxb8 {[%emt 0:00:30]} Rxb8 {[%emt 0:00:30]} 21. Nge2 {[%emt 0:00:30]} Bc6 {[%emt 0:00:30]} 22. Nd4 {[%emt 0:03:44]} Nd5 {[%emt 0:04:30]} 23. Nxc6 {[%emt 0:04:00]} Nxc3+ {[%emt 0:00:00]} 24. Kc2 {[%emt 0:00:37]} Rxb2+ {[%emt 0:01:00]} 25. Kxb2 {[%emt 0:00:30]} Nxd1+ {[%emt 0:00:30]} 26. Kc1 {[%emt 0:00:00]} Nf2 {[%emt 0:00:30]} 27. Rf1 {[%emt 0:00:22]} Nd3+ {[%emt 0:00:00]} 28. Kd2 {[%emt 0:01:03]} Kf7 {[%emt 0:02:00]} 29. Rb1 {[%emt 0:00:21]} Nf4 {[%emt 0:09:50]} 30. Re1 {[%emt 0:01:39]} c3+ {[%emt 0:03:43]} 31. Kc2 {[%emt 0:01:01]} Nd5 {[%emt 0:00:00]} 32. a3 {[%emt 0:01:02]} g5 {[%emt 0:00:30]} 33. Nd8+ {[%emt 0:03:03]} Ke8 {[%emt 0:00:22]} 34. Ne6 {[%emt 0:00:44]} Bf6 {[%emt 0:00:02]} 35. Rh1 {[%emt 0:00:49]} Nb6 {[%emt 0:02:48]} 36. Nc7+ {[%emt 0:02:04]} Kd7 {[%emt 0:00:30]} 37. Nxa6 {[%emt 0:00:30]} Nc4 {[%emt 0:00:30]} 38. a4 {[%emt 0:00:28]} Nd2 {[%emt 0:00:18]} 39. Nc5+ {[%emt 0:00:35]} Kc7 {[%emt 0:09:15]} 40. Ne4 {[%emt 0:00:06]} Nxf3 {[%emt 0:00:00]} 41. Nxf6 {[%emt 0:00:30]} exf6 {[%emt 0:00:00]} 42. Kxc3 {[%emt 0:01:16]} Ne5 {[%emt 0:00:04]} 43. Rg1 {[%emt 0:00:43]} Kc6 {[%emt 0:00:02]} 44. Rg3 {[%emt 0:00:43]} Kc5 {[%emt 0:00:15]} 45. Rg1 {[%emt 0:00:00]} Kb6 {[%emt 0:00:54]} 46. Kb4 {[%emt 0:00:22]} Kc6 {[%emt 0:01:27]} 47. a5 {[%emt 0:00:50]} Nd3+ {[%emt 0:00:00]} 48. Kc3 {[%emt 0:00:23]} Ne5 {[%emt 0:00:03]} 49. Rb1 {[%emt 0:00:26]} Nxg4 {[%emt 0:02:11]} 50. a6 {[%emt 0:00:30]} Ne3 {[%emt 0:00:00]} 51. a7 {[%emt 0:00:16]} Nd5+ {[%emt 0:00:00]} 52. Kd2 {[%emt 0:00:22]} Nc7 {[%emt 0:00:00]} 1-0

[Event "8th Mersin Open 2024"]
[Site "Mersin"]
[Date "2024.11.11"]
[Round "2"]
[White "Salci, Aytug Celal"]
[Black "Tatlioglu, Ege"]
[Result "0-1"]
[ECO "E05"]
[WhiteElo "1777"]
[BlackElo "1910"]
[Annotator "RC"]
[PlyCount "152"]
[EventDate "2024.11.10"]
[EventType "swiss"]
[EventCountry "TUR"]
[SourceTitle "playchess.com"]
[Source "ChessBase"]
[SourceQuality "1"]
[TimeControl "5400+30"]

1. d4 {[%emt 0:01:00]} Nf6 {[%emt 0:01:00]} 2. c4 {[%emt 0:00:30]} e6 {[%emt 0:00:00]} 3. Nf3 {[%emt 0:00:00]} d5 {[%emt 0:00:00]} 4. g3 {[%emt 0:00:00]} Be7 {[%emt 0:00:30]} 5. Bg2 {[%emt 0:00:30]} O-O {[%emt 0:00:30]} 6. O-O {[%emt 0:00:30]} dxc4 {[%emt 0:00:00]} 7. Qa4 {[%emt 0:00:00]} a6 {[%emt 0:06:00]} 8. Qxc4 {[%emt 0:00:00]} b5 {[%emt 0:00:00]} 9. Qc2 {[%emt 0:00:30]} Bb7 {[%emt 0:00:00]} 10. Bd2 {[%emt 0:00:00]} Be4 {[%emt 0:02:30]} 11. Qc1 {[%emt 0:01:00]} Nc6 {[%emt 0:04:30]} 12. e3 {[%emt 0:06:30]} Nb4 {[%emt 0:05:30]} 13. Bxb4 {[%emt 0:03:30]} Bxb4 {[%emt 0:00:30]} 14. a3 {[%emt 0:01:30]} Bd6 {[%emt 0:01:30]} 15. Nbd2 {[%emt 0:01:30]} Bb7 {[%emt 0:04:30]} 16. Qc2 {[%emt 0:06:30]} Rc8 {[%emt 0:12:30]} 17. e4 {[%emt 0:05:30]} Be7 {[%emt 0:11:30]} 18. e5 {[%emt 0:05:30]} Nd5 {[%emt 0:07:30]} 19. Ne4 {[%emt 0:03:30]} Ba8 {[%emt 0:01:30]} 20. h4 {[%emt 0:07:30]} h6 {[%emt 0:03:30]} 21. Rfd1 {[%emt 0:15:30]} Qd7 {[%emt 0:05:30]} 22. Ne1 {[%emt 0:13:30]} Rfd8 {[%emt 0:04:30]} 23. Nd3 {[%emt 0:03:30]} a5 {[%emt 0:02:30]} 24. Ndc5 {[%emt 0:02:30]} Qc6 {[%emt 0:03:30]} 25. Rac1 {[%emt 0:01:30]} Qb6 {[%emt 0:00:30]} 26. Qe2 {[%emt 0:02:43]} b4 {[%emt 0:06:17]} 27. Kh2 {[%emt 0:01:46]} Bc6 {[%emt 0:05:53]} 28. Qg4 {[%emt 0:02:19]} Be8 {[%emt 0:01:04]} 29. Re1 {[%emt 0:08:05]} bxa3 {[%emt 0:06:11]} 30. bxa3 {[%emt 0:00:08]} Qb2 {[%emt 0:00:08]} 31. Red1 {[%emt 0:05:52]} Qxa3 {[%emt 0:02:14]} 32. Nb7 {[%emt 0:00:39]} Ba4 {[%emt 0:01:43]} 33. Rf1 {[%emt 0:01:11]} Re8 {[%emt 0:01:10]} 34. Ra1 {[%emt 0:00:56]} Qb4 {[%emt 0:00:19]} 35. Nbc5 {[%emt 0:00:42]} Bxc5 {[%emt 0:01:14]} 36. dxc5 {[%emt 0:01:05]} Bc2 {[%emt 0:00:33]} 37. Rfe1 {[%emt 0:01:01]} Bxe4 {[%emt 0:01:09]} 38. Bxe4 {[%emt 0:00:02]} Qxc5 {[%emt 0:00:07]} 39. Kg2 {[%emt 0:00:42]} c6 {[%emt 0:01:10]} 40. Rec1 {[%emt 0:00:27]} Qb4 {[%emt 0:00:12]} 41. Rc4 {[%emt 0:00:48]} Qb2 {[%emt 0:00:43]} 42. Re1 {[%emt 0:00:02]} Red8 {[%emt 0:00:18]} 43. Qf3 {[%emt 0:00:56]} Qa2 {[%emt 0:00:40]} 44. Rec1 {[%emt 0:00:25]} Nb4 {[%emt 0:00:16]} 45. Bb1 {[%emt 0:00:29]} Qd2 {[%emt 0:00:26]} 46. Kg1 {[%emt 0:00:32]} Nd3 {[%emt 0:00:49]} 47. Qe4 {[%emt 0:00:38]} Nxc1 {[%emt 0:00:58]} 48. Qh7+ {[%emt 0:00:06]} Kf8 {[%emt 0:00:16]} 49. Qh8+ {[%emt 0:00:30]} Ke7 {[%emt 0:00:30]} 50. Qxg7 {[%emt 0:00:00]} Ne2+ {[%emt 0:00:05]} 51. Kh2 {[%emt 0:00:00]} Rg8 {[%emt 0:00:31]} 52. Qf6+ {[%emt 0:00:53]} Ke8 {[%emt 0:00:07]} 53. Bh7 {[%emt 0:01:26]} Rf8 {[%emt 0:00:06]} 54. Rc2 {[%emt 0:00:02]} Qd1 {[%emt 0:00:45]} 55. Be4 {[%emt 0:01:02]} Nd4 {[%emt 0:01:29]} 56. Rb2 {[%emt 0:00:13]} Nb5 {[%emt 0:00:00]} 57. Rc2 {[%emt 0:00:41]} Qd7 {[%emt 0:00:33]} 58. Qxh6 {[%emt 0:00:31]} a4 {[%emt 0:00:43]} 59. Rd2 {[%emt 0:00:03]} Qc7 {[%emt 0:00:32]} 60. Qe3 {[%emt 0:00:32]} Rd8 {[%emt 0:00:29]} 61. Rc2 {[%emt 0:00:29]} Nd4 {[%emt 0:00:15]} 62. Rc4 {[%emt 0:00:13]} c5 {[%emt 0:01:14]} 63. Qa3 {[%emt 0:00:05]} Qxe5 {[%emt 0:00:03]} 64. Qxa4+ {[%emt 0:00:26]} Ke7 {[%emt 0:00:35]} 65. Bg2 {[%emt 0:00:16]} Rh8 {[%emt 0:00:07]} 66. f4 {[%emt 0:00:22]} Qe2 {[%emt 0:01:08]} 67. Qa7+ {[%emt 0:00:16]} Kf6 {[%emt 0:00:00]} 68. Qxc5 {[%emt 0:00:48]} Nf3+ {[%emt 0:00:00]} 69. Kh3 {[%emt 0:00:00]} Rd5 {[%emt 0:00:57]} 70. Qb4 {[%emt 0:01:10]} Ng1+ {[%emt 0:01:00]} 71. Kh2 {[%emt 0:00:30]} Nf3+ {[%emt 0:00:30]} 72. Kh3 {[%emt 0:00:00]} Rd2 {[%emt 0:00:06]} 73. Qc3+ {[%emt 0:00:00]} Nd4 {[%emt 0:00:24]} 74. Rxd4 {[%emt 0:01:02]} Qxg2+ {[%emt 0:00:30]} 75. Kg4 {[%emt 0:00:30]} Rg8+ {[%emt 0:00:30]} 76. Kh5 {[%emt 0:00:00]} Qe2+ {[%emt 0:00:00]} 0-1

[Event "8th Mersin Open 2024"]
[Site "Mersin"]
[Date "2024.11.11"]
[Round "2"]
[White "Mursalzade, Javad"]
[Black "Oz, Ege"]
[Result "0-1"]
[ECO "A90"]
[WhiteElo "1765"]
[BlackElo "1895"]
[Annotator "NA RC"]
[PlyCount "139"]
[EventDate "2024.11.10"]
[EventType "swiss"]
[EventCountry "TUR"]
[SourceTitle "playchess.com"]
[Source "ChessBase"]
[SourceQuality "1"]
[TimeControl "5400+30"]

1. d4 {[%emt 0:01:00]} e6 {[%emt 0:01:00]} 2. c4 {[%emt 0:00:30]} f5 {[%emt 0:00:00]} 3. Nf3 {[%emt 0:00:00]} Nf6 {[%emt 0:00:00]} 4. g3 {[%emt 0:00:00]} d5 {[%emt 0:00:30]} 5. Bg2 {[%emt 0:00:00]} c6 {[%emt 0:00:00]} 6. O-O {[%emt 0:00:00]} Bd6 {[%emt 0:00:00]} 7. b3 {[%emt 0:00:00]} Qe7 {[%emt 0:00:30]} 8. Bb2 {[%emt 0:00:00]} O-O {[%emt 0:00:30]} 9. Qc1 {[%emt 0:00:30]} Ne4 {[%emt 0:00:30] A90: Dutch Defence: Miscellaneous and Modern Stonewall (with ...Bd6).} 10. Ba3 {[%emt 0:02:30]} Bxa3 {[%emt 0:02:30]} 11. Nxa3 {[%emt 0:00:00]} Nd7 {[%emt 0:00:30]} 12. e3 {[%emt 0:06:00]} g5 {[%emt 0:09:30]} 13. Rd1 {[%emt 0:12:30]} Qf6 {[%emt 0:08:30]} 14. Qb2 {[%emt 0:06:30]} g4 {[%emt 0:03:30]} 15. Ne1 {[%emt 0:08:30]} h5 {[%emt 0:13:30]} 16. Bxe4 {[%emt 0:18:30]} fxe4 {[%emt 0:00:30]} 17. Ng2 {[%emt 0:00:30]} Qf7 {[%emt 0:02:30]} 18. Nf4 {[%emt 0:11:30]} Nf6 {[%emt 0:05:30]} 19. Nc2 {[%emt 0:01:30]} Nh7 {[%emt 0:02:30]} 20. Ne1 {[%emt 0:01:30]} Ng5 {[%emt 0:01:30]} 21. Qe2 {[%emt 0:05:30]} Bd7 {[%emt 0:06:30]} 22. b4 {[%emt 0:05:32]} Kg7 {[%emt 0:11:30]} 23. h4 {[%emt 0:04:41]} gxh3 {[%emt 0:13:08]} 24. Nxh5+ {[%emt 0:00:09]} Kg8 {[%emt 0:03:05]} 25. Nf4 {[%emt 0:01:28]} Qg7 {[%emt 0:01:30]} 26. Kh2 {[%emt 0:01:23]} Rf5 {[%emt 0:03:17]} 27. Rab1 {[%emt 0:05:30]} Raf8 {[%emt 0:01:28]} 28. c5 {[%emt 0:02:19]} a6 {[%emt 0:01:26]} 29. Rb2 {[%emt 0:01:31]} Be8 {[%emt 0:03:34]} 30. a4 {[%emt 0:01:37]} R5f6 {[%emt 0:02:04]} 31. Rdd2 {[%emt 0:01:14]} Rh6 {[%emt 0:01:15]} 32. Qf1 $17 {[%emt 0:01:34]} Kh8 {[%emt 0:01:36]} 33. Qg1 {[%emt 0:01:26]} Qf6 {[%emt 0:00:45]} 34. Qf1 {[%emt 0:00:22]} Qg7 {[%emt 0:01:05]} 35. Qe2 {[%emt 0:00:42]} Kg8 {[%emt 0:00:49]} 36. Qf1 {[%emt 0:00:27]} Rhf6 {[%emt 0:01:26]} 37. Qe2 {[%emt 0:00:21]} Rh6 {[%emt 0:00:30]} 38. Qf1 {[%emt 0:00:39]} Bd7 {[%emt 0:00:09]} 39. Qe2 {[%emt 0:01:24]} Nh7 {[%emt 0:00:23]} 40. Qd1 {[%emt 0:01:08]} Nf6 {[%emt 0:00:19]} 41. Qc1 {[%emt 0:00:02]} Ng4+ {[%emt 0:00:47]} 42. Kh1 {[%emt 0:00:03]} Kh8 {[%emt 0:00:15]} 43. Rdc2 {[%emt 0:00:40]} Rg8 {[%emt 0:00:46]} 44. Qd2 {[%emt 0:00:39]} Be8 {[%emt 0:00:43]} 45. Qe2 {[%emt 0:00:23]} Bd7 {[%emt 0:00:13]} 46. Qf1 {[%emt 0:00:26]} Qg5 {[%emt 0:00:54]} 47. Re2 {[%emt 0:00:18]} e5 {[%emt 0:00:31]} 48. dxe5 {[%emt 0:00:37]} Nxe5 {[%emt 0:00:02]} 49. Rb1 {[%emt 0:01:06]} Rg7 {[%emt 0:00:40]} 50. Rd2 {[%emt 0:00:00]} Kh7 {[%emt 0:00:30]} 51. b5 {[%emt 0:00:33]} axb5 {[%emt 0:00:30]} 52. axb5 {[%emt 0:00:00]} Bg4 {[%emt 0:00:13]} 53. b6 {[%emt 0:00:57]} Qe7 {[%emt 0:00:58]} 54. Rc2 {[%emt 0:00:45]} h2 {[%emt 0:00:35]} 55. Ra1 {[%emt 0:00:18]} Qd7 {[%emt 0:00:34]} 56. Raa2 {[%emt 0:00:23]} Nc4 {[%emt 0:00:29]} 57. Ra7 {[%emt 0:00:51]} Qe7 {[%emt 0:00:29]} 58. Neg2 {[%emt 0:00:31]} Bf3 {[%emt 0:00:30]} 59. Raa2 {[%emt 0:00:30]} Qxc5 {[%emt 0:00:16]} 60. Rab2 {[%emt 0:00:28]} Qa5 {[%emt 0:00:43]} 61. Rb1 {[%emt 0:00:28]} Qa3 {[%emt 0:00:32]} 62. Qe1 {[%emt 0:00:27]} Qe7 {[%emt 0:00:30]} 63. Ra2 {[%emt 0:00:35]} Qd8 {[%emt 0:00:29]} 64. Qb4 {[%emt 0:00:25]} Qe7 {[%emt 0:00:30]} 65. Qc3 {[%emt 0:00:15]} Qf7 {[%emt 0:00:31]} 66. Ra8 {[%emt 0:00:26]} Rf6 {[%emt 0:00:29]} 67. Qd4 {[%emt 0:00:51]} Rxf4 {[%emt 0:00:33]} 68. exf4 {[%emt 0:00:21]} Qh5 {[%emt 0:00:02]} 69. Qf6 {[%emt 0:00:34]} Qh3 {[%emt 0:00:29]} 70. Qh4+ {[%emt 0:00:20]} 0-1

[Event "8th Mersin Open 2024"]
[Site "Mersin"]
[Date "2024.11.11"]
[Round "2"]
[White "Yaglioglu, Batuhan Alp"]
[Black "Erkan, Naz"]
[Result "1-0"]
[ECO "C29"]
[WhiteElo "1599"]
[BlackElo "1542"]
[Annotator "NA RC"]
[PlyCount "86"]
[EventDate "2024.11.10"]
[EventType "swiss"]
[EventCountry "TUR"]
[SourceTitle "playchess.com"]
[Source "ChessBase"]
[SourceQuality "1"]
[TimeControl "5400+30"]

1. e4 {[%emt 0:01:00]} e5 {[%emt 0:01:00]} 2. Nc3 {[%emt 0:00:00]} Nf6 {[%emt 0:00:30]} 3. f4 {[%emt 0:00:00]} d5 {[%emt 0:00:30]} 4. fxe5 {[%emt 0:02:30]} Nxe4 {[%emt 0:00:30]} 5. Qf3 {[%emt 0:00:00]} Nc6 {[%emt 0:00:30]} 6. Nxe4 {[%emt 0:03:00]} Nd4 {[%emt 0:02:30]} 7. Qc3 {[%emt 0:23:30]} dxe4 {[%emt 0:03:30]} 8. Ne2 {[%emt 0:00:30]} c5 {[%emt 0:22:30]} 9. Ng3 {[%emt 0:07:30]} Qh4 {[%emt 0:16:30]} 10. Bc4 {[%emt 0:23:30]} Be7 {[%emt 0:22:30]} 11. O-O {[%emt 0:17:27]} O-O {[%emt 0:03:30]} 12. Bd5 {[%emt 0:06:14]} Qg5 {[%emt 0:12:08]} 13. Bxe4 {[%emt 0:05:49]} Qxe5 {[%emt 0:01:25]} 14. Qe3 {[%emt 0:00:53]} Qg5 {[%emt 0:03:12]} 15. Qxg5 {[%emt 0:02:39]} Bxg5 {[%emt 0:00:33]} 16. c3 {[%emt 0:00:16]} Nc6 {[%emt 0:00:32]} 17. Bxc6 {[%emt 0:01:29]} bxc6 {[%emt 0:00:30]} 18. d3 {[%emt 0:00:30]} Bxc1 {[%emt 0:00:30]} 19. Raxc1 {[%emt 0:00:30]} Rd8 {[%emt 0:00:20]} 20. Rcd1 {[%emt 0:00:05]} Bg4 {[%emt 0:01:36]} 21. Rd2 {[%emt 0:00:16]} Rd5 {[%emt 0:03:14]} 22. Rf4 {[%emt 0:01:35]} Be6 {[%emt 0:00:25]} 23. Kf2 {[%emt 0:00:55]} Rad8 {[%emt 0:00:57]} 24. Ke3 {[%emt 0:00:17]} Re5+ {[%emt 0:01:04]} 25. Re4 {[%emt 0:00:53]} Rxe4+ {[%emt 0:00:22]} 26. Nxe4 {[%emt 0:00:33]} Bxa2 {[%emt 0:00:31]} 27. Nxc5 {[%emt 0:01:26]} Bd5 {[%emt 0:01:26]} 28. b4 {[%emt 0:00:27]} f6 {[%emt 0:00:47]} 29. c4 {[%emt 0:00:16]} Bf7 {[%emt 0:00:48]} 30. Ra2 {[%emt 0:00:17]} Ra8 {[%emt 0:00:50]} 31. Ra6 {[%emt 0:00:06]} Be8 {[%emt 0:00:07]} 32. Ne6 {[%emt 0:00:33]} Bd7 {[%emt 0:00:36]} 33. Nc7 {[%emt 0:00:32]} Rb8 {[%emt 0:00:28]} 34. Rxa7 {[%emt 0:00:55]} Rxb4 {[%emt 0:00:54]} 35. Na6 {[%emt 0:00:12]} Ra4 {[%emt 0:00:00]} 36. Rxd7 {[%emt 0:00:35]} Rxa6 {[%emt 0:00:03]} 37. Rc7 {[%emt 0:00:00]} h6 {[%emt 0:00:59]} 38. Kd4 {[%emt 0:01:08]} Kf8 {[%emt 0:00:35]} 39. Kc5 {[%emt 0:00:13]} h5 {[%emt 0:00:49]} 40. Rxc6 {[%emt 0:00:21]} Ra8 {[%emt 0:00:16]} 41. Rc7 {[%emt 0:00:39]} Rd8 {[%emt 0:00:25]} 42. d4 {[%emt 0:00:13]} g5 {[%emt 0:00:34]} 43. d5 {[%emt 0:00:19]} Ke8 {[%emt 0:01:04]} 1-0